fUSD/lending_fUSD_20260115
["ID","MTS","AMOUNT","RATE_DAILY","PERIOD"]
[401981817,1768435228724,565.83954789,0.000301,120]
[401981818,1768435234082,-200.0,0.00015866,2]
[401981819,1768435234108,-6.91572084,0.00015866,2]
[401981820,1768435234181,-174.32143946,0.00015866,2]
[401981821,1768435238325,186.16,0.00030137,120]
[401981822,1768435239424,565.66,0.000301,120]
[401981823,1768435325466,518.52,0.000301,120]
[401981824,1768435334622,518.52,0.000301,120]
[401981825,1768435371627,518.52,0.00030135,120]
[401981826,1768435391242,518.52,0.000301,120]
[401981827,1768435400215,518.52,0.000301,120]
[401981828,1768435408263,518.52,0.000301,120]
[401981829,1768435416750,518.52,0.000301,120]
[401981830,1768435425533,518.52,0.000301,120]
[401981831,1768435435176,518.52,0.000301,120]
[401981832,1768435443105,518.52,0.000301,120]
[401981833,1768435450666,518.52,0.000301,120]
[401981834,1768435453006,731.77,0.0001119,2]
[401981835,1768435453209,731.77,0.00011779,2]
[401981836,1768435453411,731.77,0.00012368,2]
[401981837,1768435453665,731.77,0.00012957,2]
[401981838,1768435453878,731.77,0.00013545,2]
[401981839,1768435454076,731.77,0.00014134,2]
[401981840,1768435454362,731.77,0.00014723,2]
[401981841,1768435459654,518.52,0.0003013,120]
[401981842,1768435467649,518.52,0.0003013,120]
[401981843,1768435475865,518.56,0.0003013,120]
[401981844,1768435491983,518.52,0.0003013,120]
[401981845,1768435505638,518.52,0.0003013,120]
[401981846,1768435548495,164.0,0.000301,120]
[401981847,1768435557761,164.0,0.000301,120]
[401981848,1768435586046,164.0,0.000301,120]
[401981851,1768435652225,880.0,0.0003013,120]
[401981858,1768435757084,-739.4530122,0.00015235,2]
[401981861,1768435832374,-335.26580545,0.00015235,2]
[401981862,1768435832390,-224.45919335,0.00015235,2]
[401981863,1768435832400,-731.77,0.00015312,2]
[401981864,1768435832410,-1200.0,0.00015865,2]
[401981865,1768435832422,-500.0,0.00015866,2]
[401981866,1768435832431,-500.0,0.00015866,2]
[401981867,1768435832441,-500.0,0.00015866,2]
[401981868,1768435832450,-500.0,0.00015866,2]
[401981869,1768435832459,-500.0,0.00015866,2]
[401981870,1768435832469,-500.0,0.00015866,2]
[401981871,1768435832478,-500.0,0.00015866,2]
[401981872,1768435832487,-500.0,0.00015866,2]
[401981873,1768435832496,-731.77,0.00015901,2]
[401981874,1768435832506,-151.0,0.00016295,2]
[401981875,1768435832515,-151.0,0.00016311,2]
[401981876,1768435832524,-151.0,0.00016311,2]
[401981877,1768435832533,-464.35340994,0.0001649,2]
[401981878,1768435832579,-267.41659006,0.0001649,2]
[401981879,1768435832588,-500.0,0.00016543,2]
[401981880,1768435832598,-500.0,0.00016543,2]
[401981881,1768435832609,-500.0,0.00016573,2]
[401981882,1768435832618,-500.0,0.00016573,2]
[401981883,1768435832628,-250.0,0.00016843,2]
[401981884,1768435832637,-731.77,0.00017079,2]
[401981885,1768435832646,-1000.0,0.00017121,2]
[401981886,1768435832655,-1000.0,0.00017121,2]
[401981887,1768435832664,-480.0,0.00017435,2]
[401981888,1768435832675,-788.02746761,0.00017578,2]
[401981889,1768435832684,-1000.0,0.00017578,2]
[401981890,1768435832693,-19489.8192017,0.00017579,2]
[401981891,1768435832705,-320.124,0.00017579,2]
[401981892,1768435832716,-1014.02545008,0.00017579,2]
[401981893,1768435832766,-684.36394183,0.00017579,2]
[401981899,1768435833549,-2853.60018265,0.00017579,2]
[401981900,1768435833561,-5398.67852417,0.00017579,2]
[401981901,1768435833572,-2225.9,0.00017579,2]
[401981902,1768435833620,-2579.82837852,0.00017579,2]
[401981903,1768435833630,-999.67682255,0.00017579,2]
[401981906,1768435838529,-286.4,0.00016295,2]
[401981907,1768435838540,-1352.65724554,0.00017579,2]
[401981908,1768435838552,-1650.0,0.00017579,2]
[401981909,1768435838566,-605.4735,0.00017579,2]
[401981910,1768435838659,-722.46490153,0.00017579,2]
[401981911,1768435838673,-47722.98785143,0.00017579,2]
[401981912,1768435838683,-150.99,0.00017579,2]
[401981913,1768435838692,-9999.99,0.00017579,2]
[401981914,1768435838703,-9797.19,0.00017665,2]
[401981915,1768435838712,-1535.28,0.00017665,2]
[401981916,1768435838723,-518.9,0.00017665,2]
[401981917,1768435838732,-731.77,0.00017668,2]
[401981918,1768435838743,-731.77,0.00018257,2]
[401981919,1768435838754,-731.77,0.00018846,2]
[401981920,1768435838765,-167.59,0.000189,2]
[401981921,1768435838775,-500.0,0.00018999,2]
[401981922,1768435838785,-500.0,0.00018999,2]
[401981924,1768435838796,-731.77,0.00019435,2]
[401981926,1768435838808,-518.9,0.0001996,2]
[401981928,1768435838819,-731.77,0.00020024,2]
[401981930,1768435838830,-10881.40238989,0.00020511,2]
[401981932,1768435838843,-3579.45218281,0.00020511,2]
[401981934,1768435838855,-1275.36724596,0.00020511,2]
[401982114,1768435840844,-984263.77818134,0.00020511,2]
[401982116,1768435840853,-547.19260232,0.00020513,2]
[401982118,1768435840863,-731.77,0.00020613,2]
[401982120,1768435840872,-155.04,0.00020694,2]
[401982121,1768435840881,-300.0,0.000208,7]
[401982123,1768435840891,-600.0,0.000209,7]
[401982125,1768435840901,-731.77,0.00021202,2]
[401982127,1768435840910,-250.0,0.00021329,2]
[401982129,1768435840919,-731.77,0.0002179,2]
[401982130,1768435840928,-518.9,0.00022254,2]
[401982132,1768435840937,-509.39,0.00022342,2]
[401982134,1768435840946,-731.77,0.00022379,2]
[401982136,1768435840956,-913.87859522,0.00022581,2]
[401982138,1768435840965,-20928.39,0.00022681,2]
[401982140,1768435840974,-198.5,0.0002276,2]
[401982142,1768435840983,-509.39,0.00023459,2]
[401982143,1768435840991,-500.0,0.0002347,2]
[401982145,1768435841000,-533.8,0.00023529,2]
[401982147,1768435841010,-547.19260225,0.00023694,2]
[401982149,1768435841019,-1000.0,0.0002408,2]
[401982151,1768435841030,-533.8,0.00024412,2]
[401982153,1768435841038,-518.9,0.00024549,2]
[401982155,1768435841048,-509.39,0.00024576,2]
[401982157,1768435841057,-500.0,0.00024799,2]
[401982158,1768435841067,-500.0,0.00024799,2]
[401982160,1768435841076,-500.0,0.00024799,2]
[401982162,1768435841085,-500.0,0.00024799,2]
[401982164,1768435841094,-913.87859522,0.00024826,2]
[401982166,1768435841103,-500.0,0.00024899,2]
[401982168,1768435841112,-500.0,0.00024899,2]
[401982169,1768435841121,-533.8,0.00025294,2]
[401982171,1768435841130,-509.39,0.00025693,2]
[401982173,1768435841139,-533.8,0.00026176,2]
[401982175,1768435841148,-236.93,0.000262,14]
[401982177,1768435841157,-248.04352095,0.0002647,2]
[401982179,1768435841166,-13343.09965989,0.00026687,2]
[401982181,1768435841175,-1500.0,0.000267,9]
[401982182,1768435841184,-7671.87417736,0.00026706,3]
[401982184,1768435841194,-151.25,0.00026706,2]
[401982186,1768435841203,-165.96923539,0.00026706,2]
[401982188,1768435841212,-500.0,0.00026715,2]
[401982190,1768435841221,-474.43522182,0.00026715,2]
[401982192,1768435841230,-500.0,0.00026715,2]
[401982193,1768435841239,-500.0,0.00026715,2]
[401982195,1768435841248,-500.0,0.00026715,2]
[401982197,1768435841257,-318.7628397,0.00026715,2]
[401982199,1768435841267,-500.0,0.00026715,2]
[401982201,1768435841276,-587.5412259,0.00026715,2]
[401982203,1768435841285,-752.11163925,0.00026716,2]
[401982205,1768435841294,-11507.811266,0.00026716,3]
[401982207,1768435841305,-151.0,0.00026723,7]
[401982208,1768435841314,-500.0,0.00026725,2]
[401982210,1768435841324,-500.0,0.00026725,2]
[401982212,1768435841333,-500.0,0.00026725,2]
[401982214,1768435841342,-500.0,0.00026725,2]
[401982216,1768435841355,-596.64,0.00026725,2]
[401982218,1768435841365,-150.0,0.00026725,2]
[401982219,1768435841374,-356.78,0.00026787,2]
[401982221,1768435841383,-3000.0,0.000268,9]
[401982223,1768435841392,-509.39,0.0002681,2]
[401982225,1768435841403,-518.9,0.00026844,2]
[401982227,1768435841412,-4500.0,0.000269,9]
[401982251,1768435841658,-533.8,0.00027059,2]
[401982253,1768435841668,-913.87859522,0.0002707,2]
[401982255,1768435841678,-1000.0,0.0002709,2]
[401982257,1768435841688,-504.0,0.00027137,2]
[401982259,1768435841697,-504.00003,0.00027137,2]
[401982261,1768435841706,-500.0,0.00027143,2]
[401982263,1768435841715,-2789.59,0.0002722,2]
[401982265,1768435841724,-150.0,0.00027369,2]
[401982267,1768435841733,-452.8,0.00027397,2]
[401982268,1768435841743,-762.8,0.00027397,2]
[401982269,1768435841752,-300.0,0.0002763,2]
[401982270,1768435841762,-500.0,0.00028005,7]
[401982271,1768435841771,-500.0,0.00028424,20]
[401982272,1768435841780,-13343.09965987,0.00028475,2]
[401982273,1768435841789,-504.0,0.00029025,4]
[401982274,1768435841798,-518.9,0.00029138,2]
[401982275,1768435841808,-913.87859522,0.00029315,2]
[401982276,1768435841819,-752.1116392,0.00029396,2]
[401982277,1768435841828,-3503.45,0.00029454,2]
[401982278,1768435841838,-400.0,0.0003,10]
[401982279,1768435841847,-1000.0,0.000301,2]
[401982280,1768435841856,-1000.0,0.00030139,2]
[401982281,1768435841865,-13343.09965987,0.00030264,2]
[401982282,1768435841874,-500.0,0.00030285,7]
[401982283,1768435841884,-504.0,0.00030913,6]
[401982284,1768435841893,-500.0,0.00030933,7]
[401982285,1768435841902,-518.9,0.00031433,2]
[401982286,1768435841911,-913.87859522,0.00031559,2]
[401982287,1768435841921,-500.0,0.00031699,2]
[401982288,1768435841931,-561.16,0.00031843,30]
[401982289,1768435841940,-169.52470437,0.00032,120]
[401982290,1768435841949,-13343.09965987,0.00032052,2]
[401982291,1768435841958,-752.1116392,0.00032075,2]
[401982293,1768435841968,-504.0,0.00032801,8]
[401982294,1768435841977,-500.0,0.00032876,30]
[401982296,1768435841986,-1000.0,0.0003311,2]
[401982298,1768435841995,-30000.0,0.00033599,30]
[401982300,1768435842004,-3767.0,0.00033721,5]
[401982302,1768435842013,-518.9,0.00033727,5]
[401982304,1768435842022,-758.84,0.000338,14]
[401982306,1768435842031,-913.87859522,0.00033804,2]
[401982308,1768435842040,-13343.09965987,0.0003384,2]
[401982310,1768435842049,-500.0,0.0003411,7]
[401982312,1768435842058,-198.5,0.00034168,2]
[401982314,1768435842067,-1267.0,0.00034333,2]
[401982316,1768435842076,-412.0,0.00034333,2]
[401982318,1768435842086,-1202.0,0.00034333,2]
[401982320,1768435842095,-914.0,0.00034333,2]
[401982322,1768435842104,-1639.057,0.00034333,2]
[401982324,1768435842113,-566.0,0.00034333,2]
[401982326,1768435842122,-2438.0,0.00034333,2]
[401982328,1768435842131,-504.0,0.00034689,10]
[401982330,1768435842140,-752.1116392,0.00034755,2]
[401982332,1768435842149,-1574.231,0.00035163,41]
[401982334,1768435842158,-169.061,0.00035163,41]
[401982336,1768435842167,-200.0,0.00035253,2]
[401982338,1768435842176,-333.34,0.00035411,2]
[401982340,1768435842186,-1000.0,0.000356,2]
[401982342,1768435842195,-13343.09965987,0.00035629,2]
[401982344,1768435842204,-222.22,0.00035969,2]
[401982346,1768435842214,-518.9,0.00036022,7]
[401982348,1768435842227,-913.87859522,0.00036048,2]
[401982350,1768435842236,-1000.0,0.0003612,2]
[401982352,1768435842246,-2000.0,0.000362,2]
[401982354,1768435842255,-213.0,0.00036287,2]
[401982356,1768435842265,-265.0,0.00036287,2]
[401982358,1768435842274,-194.425,0.00036287,2]
[401982360,1768435842283,-226.708,0.00036287,2]
[401982362,1768435842292,-250.0,0.00036287,2]
[401982364,1768435842300,-157.467,0.00036297,2]
[401982366,1768435842309,-250.0,0.00036297,2]
[401982368,1768435842319,-191.008,0.00036297,2]
[401982370,1768435842328,-212.054,0.00036297,2]
[401982372,1768435842337,-250.0,0.00036297,2]
[401982374,1768435842346,-229.743,0.00036297,2]
[401982376,1768435842358,-169.0,0.00036297,2]
[401982378,1768435842367,-3470.0,0.00036297,2]
[401982380,1768435842376,-1405.0,0.00036297,2]
[401982382,1768435842385,-614.0,0.00036297,2]
[401982384,1768435842397,-504.0,0.00036577,12]
[401982386,1768435842406,-1000.0,0.00036983,120]
[401982388,1768435842415,-1582.84315027,0.00037239,14]
[401982390,1768435842426,-1200.0,0.00037333,2]
[401982392,1768435842435,-914.0,0.00037333,2]
[401982394,1768435842445,-566.0,0.00037333,2]
[401982396,1768435842454,-2438.0,0.00037333,2]
[401982398,1768435842463,-13343.09965987,0.00037417,2]
[401982400,1768435842472,-752.1116392,0.00037434,2]
[401982402,1768435842481,-356.78,0.00037502,2]
[401982404,1768435842490,-198.5,0.00038051,2]
[401982406,1768435842499,-913.87859522,0.00038293,2]
[401982408,1768435842508,-518.9,0.00038317,30]
[401982410,1768435842517,-300.0,0.00038356,120]
[401982412,1768435842526,-300.0,0.00038356,120]
[401982414,1768435842534,-300.0,0.00038356,120]
[401982416,1768435842543,-300.0,0.00038356,120]
[401982418,1768435842554,-300.0,0.00038356,120]
[401982421,1768435842564,-300.0,0.00038356,120]
[401982423,1768435842574,-300.0,0.00038356,120]
[401982425,1768435842583,-300.0,0.00038356,120]
[401982427,1768435842592,-300.0,0.00038356,120]
[401982429,1768435842601,-300.0,0.00038356,120]
[401982431,1768435842610,-300.0,0.00038356,120]
[401982433,1768435842621,-300.0,0.00038356,120]
[401982435,1768435842630,-300.0,0.00038356,120]
[401982437,1768435842638,-324.0,0.00038356,120]
[401982439,1768435842647,-324.0,0.00038356,120]
[401982441,1768435842656,-324.0,0.00038356,120]
[401982443,1768435842665,-324.0,0.00038356,120]
[401982445,1768435842674,-324.0,0.00038356,120]
[401982447,1768435842683,-324.0,0.00038356,120]
[401982448,1768435842692,-324.0,0.00038356,120]
[401982450,1768435842700,-324.0,0.00038356,120]
[401982452,1768435842709,-324.0,0.00038356,120]
[401982454,1768435842718,-324.0,0.00038356,120]
[401982456,1768435842726,-324.0,0.00038356,120]
[401982458,1768435842735,-324.0,0.00038356,120]
[401982460,1768435842744,-504.0,0.00038465,14]
[401982462,1768435842753,-300.0,0.00038575,2]
[401982464,1768435842763,-300.0,0.00038611,2]
[401982466,1768435842772,-1356.9,0.0003888,120]
[401982468,1768435842781,-150.0,0.00038959,60]
[401982470,1768435842790,-150.0,0.00038959,60]
[401982472,1768435842799,-500.0,0.00038959,60]
[401982474,1768435842808,-150.0,0.00038959,60]
[401982476,1768435842817,-500.0,0.00038959,60]
[401982478,1768435842827,-150.0,0.00038959,60]
[401982480,1768435842836,-200.0,0.00038959,60]
[401982482,1768435842845,-174.30171844,0.00038959,30]
[401982484,1768435842855,-500.0,0.00038959,60]
[401982486,1768435842864,-500.0,0.00038959,60]
[401982488,1768435842873,-150.0,0.00038959,60]
[401982490,1768435842882,-150.0,0.00038959,2]
[401982492,1768435842891,-500.0,0.00038959,60]
[401982494,1768435842900,-500.0,0.00038959,60]
[401982496,1768435842909,-150.0,0.00038959,60]
[401982498,1768435842918,-500.0,0.00038959,60]
[401982500,1768435842927,-500.0,0.00038959,2]
[401982502,1768435842938,-500.0,0.00038959,60]
[401982504,1768435842947,-500.0,0.00038959,60]
[401982506,1768435842956,-150.0,0.00038959,60]
[401982508,1768435842965,-150.0,0.00038959,60]
[401982510,1768435842974,-150.0,0.00038959,60]
[401982512,1768435842984,-164.0,0.00039,120]
[401982514,1768435842993,-1000.0,0.00039,45]
[401982516,1768435843003,-150.0,0.00039014,60]
[401982518,1768435843012,-150.0,0.00039014,60]
[401982520,1768435843022,-500.0,0.00039014,60]
[401982522,1768435843031,-500.0,0.00039014,60]
[401982525,1768435843044,-150.0,0.00039014,60]
[401982527,1768435843053,-500.0,0.00039014,60]
[401982529,1768435843063,-500.0,0.00039014,60]
[401982531,1768435843072,-200.0,0.00039014,60]
[401982533,1768435843082,-500.0,0.00039014,60]
[401982535,1768435843090,-500.0,0.00039014,60]
[401982537,1768435843100,-150.0,0.00039014,60]
[401982539,1768435843109,-500.0,0.00039014,60]
[401982541,1768435843118,-500.0,0.00039014,2]
[401982543,1768435843127,-500.0,0.00039014,60]
[401982545,1768435843136,-500.0,0.00039014,60]
[401982547,1768435843145,-150.0,0.00039014,60]
[401982549,1768435843154,-150.0,0.00039014,60]
[401982551,1768435843163,-150.0,0.00039014,60]
[401982553,1768435843173,-150.0,0.00039069,60]
[401982555,1768435843182,-150.0,0.00039069,60]
[401982557,1768435843191,-500.0,0.00039069,60]
[401982559,1768435843200,-174.78328857,0.00039069,60]
[401982561,1768435843209,-150.0,0.00039069,60]
[401982563,1768435843218,-500.0,0.00039069,60]
[401982565,1768435843227,-648.69425671,0.00039069,60]
[401982567,1768435843236,-500.0,0.00039069,60]
[401982568,1768435843247,-530.66926965,0.00039069,60]
[401982570,1768435843257,-500.0,0.00039069,60]
[401982572,1768435843266,-500.0,0.00039069,2]
[401982575,1768435843275,-500.0,0.00039069,60]
[401982579,1768435843284,-500.0,0.00039069,60]
[401982581,1768435843293,-157.31867032,0.00039069,60]
[401982584,1768435843303,-150.0,0.00039069,60]
[401982585,1768435843313,-150.0,0.00039069,60]
[401982587,1768435843322,-150.0,0.00039123,60]
[401982589,1768435843331,-202.08698658,0.00039123,60]
[401982591,1768435843340,-500.0,0.00039123,60]
[401982594,1768435843352,-150.0,0.00039123,60]
[401982596,1768435843362,-500.0,0.00039123,60]
[401982597,1768435843373,-516.31193931,0.00039123,60]
[401982599,1768435843382,-150.0,0.00039123,60]
[401982601,1768435843393,-500.0,0.00039123,2]
[401982603,1768435843403,-500.0,0.00039123,60]
[401982606,1768435843412,-250.0,0.00039178,60]
[401982608,1768435843422,-500.0,0.00039178,60]
[401982610,1768435843435,-150.0,0.00039178,60]
[401982612,1768435843444,-500.0,0.00039178,60]
[401982614,1768435843453,-500.0,0.00039178,2]
[401982616,1768435843463,-500.0,0.00039178,60]
[401982618,1768435843473,-13343.09965987,0.00039205,2]
[401982620,1768435843482,-500.0,0.00039233,60]
[401982622,1768435843492,-250.0,0.00039233,60]
[401982624,1768435843501,-500.0,0.00039233,60]
[401982626,1768435843510,-500.0,0.00039288,60]
[401982628,1768435843519,-500.0,0.00039288,60]
[401982630,1768435843529,-3470.0,0.00039297,2]
[401982632,1768435843538,-614.0,0.00039297,2]
[401982634,1768435843547,-758.84,0.000393,14]
[401982636,1768435843556,-1000.0,0.000393,2]
[401982638,1768435843565,-500.0,0.00039343,60]
[401982640,1768435843575,-500.0,0.00039397,60]
[401982642,1768435843584,-500.0,0.00039452,60]
[401982644,1768435843593,-6157.84376205,0.00039485,5]
[401982646,1768435843603,-1000.0,0.000395,45]
[401982648,1768435843613,-3645.83545376,0.00039506,5]
[401982650,1768435843622,-500.0,0.00039507,60]
[401982652,1768435843631,-500.0,0.00039562,60]
[401982654,1768435843641,-500.0,0.00039617,60]
[401982656,1768435843650,-231.23799714,0.00039671,60]
[401982658,1768435843660,-150.0,0.00039671,60]
[401982660,1768435843668,-234.30865662,0.00039671,60]
[401982662,1768435843678,-500.0,0.00039671,60]
[401982664,1768435843687,-159.6010049,0.00039671,60]
[401982666,1768435843696,-150.0,0.00039671,60]
[401982668,1768435843705,-150.0,0.00039671,60]
[401982670,1768435843714,-150.0,0.00039671,60]
[401982672,1768435843723,-150.0,0.00039671,60]
[401982674,1768435843732,-171.05172936,0.00039671,60]
[401982676,1768435843741,-500.0,0.00039671,60]
[401982678,1768435843750,-1000.0,0.0003969,2]
[401982680,1768435843759,-1356.9,0.00039714,120]
[401982682,1768435843768,-150.0,0.00039726,60]
[401982684,1768435843777,-500.0,0.00039726,60]
[401982686,1768435843786,-150.0,0.00039726,60]
[401982688,1768435843795,-150.0,0.00039726,60]
[401982690,1768435843804,-150.0,0.00039726,60]
[401982692,1768435843814,-150.0,0.00039726,60]
[401982694,1768435843825,-500.0,0.00039726,60]
[401982696,1768435843835,-200.0,0.00039781,60]
[401982698,1768435843844,-150.0,0.00039781,60]
[401982700,1768435843853,-150.0,0.00039781,60]
[401982702,1768435843862,-154.47382576,0.00039781,60]
[401982704,1768435843871,-185.36700145,0.00039781,60]
[401982706,1768435843880,-500.0,0.00039781,60]
[401982708,1768435843890,-157.03274317,0.00039835,60]
[401982710,1768435843899,-500.0,0.00039836,60]
[401982712,1768435843908,-500.0,0.00039891,60]
[401982714,1768435843917,-2000.0,0.000399,2]
[401982716,1768435843927,-4177.1481166,0.00039939,14]
[401982718,1768435843936,-572.38078481,0.00039945,60]
[401982720,1768435843946,-151.0,0.0004,120]
[401982722,1768435843955,-1753.0,0.0004,2]
[401982724,1768435843965,-214.89,0.0004,2]
[401982726,1768435843974,-150.0,0.0004,120]
[401982728,1768435843983,-151.0,0.0004,120]
[401982730,1768435843992,-1000.0,0.0004,120]
[401982732,1768435844002,-1913.94047,0.0004,120]
[401982734,1768435844011,-1000.0,0.0004,60]
[401982736,1768435844020,-752.1116392,0.00040114,2]
[401982738,1768435844029,-294.01433333,0.00040154,120]
[401982740,1768435844039,-151.69,0.00040154,120]
[401982742,1768435844048,-151.69,0.00040154,120]
[401982744,1768435844057,-151.69,0.00040254,120]
[401982746,1768435844066,-566.0,0.00040333,2]
[401982748,1768435844076,-2438.0,0.00040333,2]
[401982750,1768435844085,-504.0,0.00040353,16]
[401982752,1768435844096,-151.69,0.00040354,120]
[401982754,1768435844106,-151.69,0.00040454,120]
[401982756,1768435844115,-151.69,0.00040454,120]
[401982758,1768435844124,-913.87859522,0.00040537,15]
[401982760,1768435844133,-1356.9,0.00040548,120]
[401982762,1768435844142,-151.69,0.00040554,120]
[401982764,1768435844151,-151.69,0.00040554,120]
[401982766,1768435844160,-518.9,0.00040611,120]
[401982768,1768435844169,-151.69,0.00040654,120]
[401982770,1768435844179,-151.69,0.00040654,120]
[401982772,1768435844188,-151.0,0.000407,120]
[401982774,1768435844197,-434.0,0.00040767,120]
[401982776,1768435844206,-151.0,0.000408,120]
[401982778,1768435844215,-500.0,0.00040821,120]
[401982780,1768435844224,-500.0,0.00040821,120]
[401982782,1768435844233,-500.0,0.00040821,120]
[401982784,1768435844242,-500.0,0.00040821,120]
[401982786,1768435844251,-500.0,0.00040821,120]
[401982788,1768435844260,-500.0,0.00040821,120]
[401982790,1768435844269,-500.0,0.00040821,120]
[401982792,1768435844279,-500.0,0.00040821,120]
[401982794,1768435844288,-500.0,0.00040821,120]
[401982796,1768435844297,-500.0,0.00040821,120]
[401982798,1768435844306,-500.0,0.00040821,120]
[401982800,1768435844316,-500.0,0.00040821,120]
[401982802,1768435844325,-500.0,0.00040821,120]
[401982804,1768435844334,-351.86479154,0.00040821,120]
[401982806,1768435844343,-151.69,0.00040854,120]
[401982808,1768435844356,-758.84,0.000409,14]
[401982810,1768435844365,-151.69,0.00040954,120]
[401982812,1768435844374,-13343.09965987,0.00040994,15]
[401982814,1768435844384,-1751.0,0.00041,30]
[401982816,1768435844394,-150.0,0.00041,120]
[401982818,1768435844404,-1000.0,0.00041,90]
[401982820,1768435844412,-151.69,0.00041054,120]
[401982823,1768435844422,-300.0,0.00041068,22]
[401982825,1768435844432,-500.0,0.00041095,120]
[401982829,1768435844442,-357.46583831,0.00041095,120]
[401982831,1768435844452,-1132.0,0.00041096,120]
[401982833,1768435844463,-1907.0,0.00041096,120]
[401982836,1768435844473,-151.69,0.00041154,120]
[401982838,1768435844483,-500.0,0.0004118,30]
[401982840,1768435844494,-3503.45,0.00041235,2]
[401982841,1768435844503,-151.69,0.00041254,120]
[401982844,1768435844514,-2045.48,0.0004126,30]
[401982845,1768435844525,-207.75,0.0004126,30]
[401982847,1768435844534,-179.36,0.0004126,30]
[401982849,1768435844544,-467.34,0.0004126,30]
[401982851,1768435844553,-171.62,0.0004126,30]
[401982853,1768435844562,-179.36,0.0004126,30]
[401982855,1768435844572,-467.34,0.0004126,30]
[401982857,1768435844581,-178.64,0.0004126,30]
[401982859,1768435844590,-467.34,0.0004126,30]
[401982861,1768435844599,-179.36,0.0004126,30]
[401982863,1768435844608,-467.34,0.0004126,30]
[401982865,1768435844617,-179.36,0.0004126,30]
[401982867,1768435844627,-467.34,0.0004126,30]
[401982869,1768435844636,-834.0,0.00041306,11]
[401982871,1768435844646,-834.0,0.00041306,11]
[401982873,1768435844655,-162.0,0.00041306,11]
[401982875,1768435844664,-151.69,0.00041354,120]
[401982877,1768435844673,-1356.9,0.00041382,120]
[401982879,1768435844684,-300.150805,0.00041417,106]
[401982881,1768435844693,-151.69,0.00041454,120]
[401982884,1768435844702,-199.88008291,0.000415,30]
[401982886,1768435844712,-151.0,0.000415,120]
[401982888,1768435844721,-1000.0,0.000415,90]
[401982890,1768435844730,-2014.5813,0.00041525,120]
[401982892,1768435844739,-151.0,0.000416,120]
[401982894,1768435844749,-13236.01224057,0.00041613,7]
[401982896,1768435844758,-500.0,0.00041616,2]
[401982897,1768435844767,-162.0,0.00041622,11]
[401982899,1768435844776,-162.0,0.00041622,11]
[401982901,1768435844786,-834.0,0.00041622,11]
[401982903,1768435844795,-162.0,0.00041624,11]
[401982905,1768435844804,-834.0,0.00041625,11]
[401982907,1768435844813,-162.0,0.00041625,11]
[401982910,1768435844823,-162.0,0.00041626,11]
[401982912,1768435844832,-834.0,0.00041626,11]
[401982913,1768435844841,-162.0,0.00041626,11]
[401982916,1768435844851,-834.0,0.00041626,11]
[401982918,1768435844861,-834.0,0.00041626,11]